fUSD/lending_fUSD_20260107
["ID","MTS","AMOUNT","RATE_DAILY","PERIOD"]
[400696000,1767780661876,-500.0,0.00038356,14]
[400696001,1767780661885,-1400.74,0.00038356,14]
[400696002,1767780661895,-1240.12,0.00038356,14]
[400696003,1767780661904,-543.51332955,0.00038356,14]
[400696004,1767780661913,-3258.14,0.00038356,14]
[400696005,1767780661922,-500.0,0.00038356,2]
[400696006,1767780661931,-500.0,0.00038356,14]
[400696007,1767780661940,-500.0,0.00038356,14]
[400696008,1767780661949,-538.53,0.00038356,14]
[400696009,1767780661958,-500.0,0.00038356,14]
[400696010,1767780661967,-500.0,0.00038356,14]
[400696011,1767780661976,-500.0,0.00038356,14]
[400696012,1767780661984,-1974.46,0.00038356,14]
[400696013,1767780661993,-500.0,0.00038356,14]
[400696014,1767780662002,-3561.17,0.00038356,14]
[400696015,1767780662011,-500.0,0.00038356,14]
[400696016,1767780662019,-500.0,0.00038356,14]
[400696017,1767780662028,-500.0,0.00038356,14]
[400696018,1767780662037,-500.0,0.00038356,14]
[400696019,1767780662046,-505.75,0.00038356,14]
[400696020,1767780662055,-500.0,0.00038356,14]
[400696021,1767780662065,-500.0,0.00038356,14]
[400696022,1767780662075,-500.0,0.00038356,14]
[400696023,1767780662085,-1544.59,0.00038356,14]
[400696024,1767780662094,-500.0,0.00038356,14]
[400696025,1767780662103,-500.0,0.00038356,14]
[400696026,1767780662115,-500.0,0.00038356,14]
[400696027,1767780662125,-500.0,0.00038356,14]
[400696028,1767780662134,-500.0,0.00038356,2]
[400696029,1767780662143,-519.0838284,0.00038356,14]
[400696030,1767780662151,-760.22,0.00038356,14]
[400696031,1767780662160,-500.0,0.00038356,14]
[400696032,1767780662169,-866.70429,0.00038356,14]
[400696033,1767780662177,-500.0,0.00038356,14]
[400696034,1767780662186,-643.72,0.00038356,14]
[400696035,1767780662196,-676.99,0.00038356,14]
[400696036,1767780662205,-500.0,0.00038356,14]
[400696037,1767780662214,-500.0,0.00038356,14]
[400696038,1767780662223,-500.0,0.00038356,14]
[400696039,1767780662232,-500.0,0.00038356,14]
[400696040,1767780662242,-1000.0,0.00038356,10]
[400696041,1767780662251,-1000.0,0.00038356,10]
[400696042,1767780662261,-1000.0,0.00038356,10]
[400696043,1767780662278,-1000.0,0.00038356,10]
[400696044,1767780662297,-1000.0,0.00038356,10]
[400696045,1767780662316,-1000.0,0.00038356,10]
[400696046,1767780662336,-1000.0,0.00038356,10]
[400696047,1767780662350,-1000.0,0.00038356,10]
[400696048,1767780662359,-1000.0,0.00038356,10]
[400696049,1767780662368,-1000.0,0.00038356,10]
[400696050,1767780662377,-1000.0,0.00038356,10]
[400696051,1767780662386,-1000.0,0.00038356,10]
[400696052,1767780662395,-1000.0,0.00038356,10]
[400696053,1767780662406,-1000.0,0.00038356,10]
[400696054,1767780662414,-1000.0,0.00038356,10]
[400696055,1767780662423,-1000.0,0.00038356,10]
[400696056,1767780662433,-1000.0,0.00038356,10]
[400696057,1767780662448,-1000.0,0.00038356,10]
[400696058,1767780662458,-1000.0,0.00038356,10]
[400696059,1767780662469,-1000.0,0.00038356,10]
[400696060,1767780662478,-1000.0,0.00038356,10]
[400696061,1767780662488,-1000.0,0.00038356,10]
[400696062,1767780662497,-1000.0,0.00038356,10]
[400696063,1767780662506,-1000.0,0.00038356,10]
[400696064,1767780662517,-1000.0,0.00038356,10]
[400696065,1767780662526,-1000.0,0.00038356,10]
[400696066,1767780662535,-1000.0,0.00038356,10]
[400696067,1767780662545,-1000.0,0.00038356,10]
[400696068,1767780662555,-1000.0,0.00038356,10]
[400696069,1767780662564,-1000.0,0.00038356,10]
[400696070,1767780662574,-1000.0,0.00038356,10]
[400696071,1767780662583,-1000.0,0.00038356,10]
[400696072,1767780662592,-1000.0,0.00038356,10]
[400696073,1767780662602,-1000.0,0.00038356,10]
[400696074,1767780662612,-1000.0,0.00038356,10]
[400696075,1767780662621,-1000.0,0.00038356,10]
[400696076,1767780662631,-1000.0,0.00038356,10]
[400696077,1767780662642,-1000.0,0.00038356,10]
[400696078,1767780662653,-1000.0,0.00038356,10]
[400696079,1767780662662,-1000.0,0.00038356,10]
[400696080,1767780662671,-1000.0,0.00038356,10]
[400696081,1767780662680,-1000.0,0.00038356,10]
[400696082,1767780662690,-1000.0,0.00038356,10]
[400696083,1767780662700,-1000.0,0.00038356,10]
[400696084,1767780662709,-1000.0,0.00038356,10]
[400696085,1767780662719,-1000.0,0.00038356,10]
[400696086,1767780662728,-1000.0,0.00038356,10]
[400696087,1767780662737,-1000.0,0.00038356,10]
[400696088,1767780662746,-1000.0,0.00038356,10]
[400696089,1767780662755,-1000.0,0.00038356,10]
[400696090,1767780662764,-1000.0,0.00038356,10]
[400696091,1767780662776,-1000.0,0.00038356,10]
[400696092,1767780662786,-1000.0,0.00038356,10]
[400696093,1767780662795,-1000.0,0.00038356,10]
[400696094,1767780662804,-1000.0,0.00038356,10]
[400696095,1767780662812,-1000.0,0.00038356,10]
[400696096,1767780662821,-1000.0,0.00038356,10]
[400696097,1767780662830,-1000.0,0.00038356,10]
[400696098,1767780662839,-1000.0,0.00038356,10]
[400696099,1767780662848,-1000.0,0.00038356,10]
[400696100,1767780662858,-1000.0,0.00038356,10]
[400696101,1767780662867,-1000.0,0.00038356,10]
[400696102,1767780662876,-1000.0,0.00038356,10]
[400696103,1767780662885,-1000.0,0.00038356,10]
[400696104,1767780662894,-1000.0,0.00038356,10]
[400696105,1767780662902,-1000.0,0.00038356,10]
[400696106,1767780662911,-1000.0,0.00038356,10]
[400696107,1767780662920,-1000.0,0.00038356,10]
[400696108,1767780662929,-1000.0,0.00038356,10]
[400696109,1767780662938,-1000.0,0.00038356,10]
[400696110,1767780662948,-1000.0,0.00038356,10]
[400696111,1767780662957,-1000.0,0.00038356,10]
[400696112,1767780662965,-1000.0,0.00038356,10]
[400696113,1767780662973,-1000.0,0.00038356,10]
[400696114,1767780662982,-703.0,0.00038356,10]
[400696115,1767780662990,-300.0,0.00038357,2]
[400696116,1767780663001,-150.0,0.0003836,7]
[400696117,1767780663011,-300.0,0.00038362,2]
[400696118,1767780663020,-150.0,0.00038368,7]
[400696119,1767780663029,-300.0,0.00038383,2]
[400696120,1767780663038,-150.0,0.00038395,7]
[400696121,1767780663047,-300.0,0.00038398,2]
[400696122,1767780663056,-1601.02,0.000384,30]
[400696123,1767780663065,-1081.85,0.000384,14]
[400696124,1767780663074,-300.0,0.00038404,2]
[400696125,1767780663083,-1000.0,0.00038405,7]
[400696126,1767780663093,-509.0,0.00038408,11]
[400696127,1767780663102,-300.0,0.0003841,2]
[400696128,1767780663111,-300.0,0.00038413,2]
[400696129,1767780663120,-300.0,0.00038415,2]
[400696130,1767780663129,-300.0,0.00038427,2]
[400696131,1767780663139,-500.0,0.00038436,14]
[400696132,1767780663148,-500.0,0.00038436,14]
[400696133,1767780663157,-500.0,0.00038436,14]
[400696134,1767780663166,-500.0,0.00038436,14]
[400696135,1767780663175,-500.0,0.00038436,15]
[400696136,1767780663184,-500.0,0.00038436,14]
[400696137,1767780663194,-500.0,0.00038436,14]
[400696138,1767780663203,-500.0,0.00038436,14]
[400696139,1767780663212,-500.0,0.00038436,14]
[400696140,1767780663221,-500.0,0.00038436,14]
[400696141,1767780663230,-506.7297603,0.00038436,14]
[400696142,1767780663240,-1000.0,0.00038439,7]
[400696143,1767780663250,-300.0,0.0003844,2]
[400696144,1767780663259,-300.0,0.00038442,2]
[400696145,1767780663268,-1000.0,0.00038443,7]
[400696146,1767780663277,-200.0,0.00038452,20]
[400696147,1767780663287,-1000.0,0.00038452,7]
[400696148,1767780663295,-300.0,0.00038455,2]
[400696149,1767780663303,-300.0,0.00038457,2]
[400696150,1767780663313,-300.0,0.00038463,2]
[400696151,1767780663322,-300.0,0.00038464,2]
[400696152,1767780663331,-300.0,0.00038464,2]
[400696153,1767780663342,-300.0,0.00038468,2]
[400696154,1767780663351,-300.0,0.0003847,2]
[400696155,1767780663362,-1000.0,0.00038472,7]
[400696156,1767780663372,-300.0,0.00038475,2]
[400696157,1767780663382,-1000.0,0.0003848,7]
[400696158,1767780663391,-300.0,0.00038487,2]
[400696159,1767780663401,-630.07344,0.00038488,30]
[400696160,1767780663411,-300.0,0.0003849,2]
[400696161,1767780663420,-1000.0,0.00038496,7]
[400696162,1767780663429,-160.0,0.000385,26]
[400696163,1767780663445,-160.0,0.000385,26]
[400696164,1767780663455,-160.0,0.000385,26]
[400696165,1767780663465,-645.27,0.000385,14]
[400696166,1767780663476,-500.0,0.00038505,30]
[400696167,1767780663487,-500.0,0.00038505,30]
[400696168,1767780663498,-511.28496674,0.00038505,30]
[400696169,1767780663506,-1000.0,0.00038508,7]
[400696170,1767780663518,-300.0,0.00038509,2]
[400696171,1767780663528,-271.7085003,0.0003851,2]
[400696172,1767780663538,-300.0,0.00038515,2]
[400696173,1767780663547,-4818.0,0.00038516,2]
[400696174,1767780663556,-565.0,0.00038516,2]
[400696175,1767780663565,-2318.321,0.00038516,2]
[400696176,1767780663575,-150.0,0.0003852,7]
[400696177,1767780663584,-300.0,0.00038522,2]
[400696178,1767780663593,-300.0,0.00038543,2]
[400696179,1767780663603,-156.50935429,0.00038546,7]
[400696180,1767780663613,-300.0,0.00038554,2]
[400696181,1767780663622,-300.0,0.00038556,2]
[400696182,1767780663632,-150.0,0.00038557,7]
[400696183,1767780663641,-300.0,0.00038557,2]
[400696184,1767780663651,-300.0,0.00038559,2]
[400696185,1767780663660,-1000.0,0.00038567,7]
[400696186,1767780663669,-300.0,0.00038568,2]
[400696187,1767780663678,-983.46328676,0.0003857,2]
[400696188,1767780663687,-1000.0,0.0003857,2]
[400696189,1767780663698,-1000.0,0.0003857,2]
[400696190,1767780663707,-500.0,0.0003857,2]
[400696191,1767780663716,-300.0,0.00038578,2]
[400696192,1767780663725,-1000.0,0.00038579,7]
[400696193,1767780663734,-200.0,0.00038582,20]
[400696194,1767780663743,-150.0,0.00038592,7]
[400696195,1767780663752,-300.0,0.00038592,2]
[400696196,1767780663762,-300.0,0.00038594,2]
[400696197,1767780663771,-1000.0,0.00038603,7]
[400696198,1767780663780,-6719.617344,0.00038606,2]
[400696199,1767780663789,-300.0,0.00038607,2]
[400696200,1767780663798,-1000.0,0.00038612,7]
[400696201,1767780663807,-300.0,0.00038618,2]
[400696202,1767780663816,-270.98651139,0.0003862,2]
[400696203,1767780663825,-151.0,0.00038627,14]
[400696204,1767780663834,-273517.7498417,0.0003863,2]
[400696205,1767780663843,-540.05737928,0.0003863,14]
[400696206,1767780663852,-500.0,0.0003863,14]
[400696207,1767780663862,-500.0,0.0003863,14]
[400696208,1767780663872,-500.0,0.0003863,14]
[400696209,1767780663882,-500.0,0.0003863,14]
[400696210,1767780663892,-500.0,0.0003863,14]
[400696211,1767780663901,-500.0,0.0003863,14]
[400696212,1767780663912,-500.0,0.0003863,14]
[400696213,1767780663922,-500.0,0.0003863,14]
[400696214,1767780663931,-500.0,0.0003863,14]
[400696215,1767780663940,-516.21275312,0.0003863,14]
[400696216,1767780663950,-500.0,0.0003863,14]
[400696217,1767780663959,-500.0,0.0003863,14]
[400696218,1767780663969,-537.01,0.0003863,14]
[400696219,1767780663979,-1704.93,0.0003863,14]
[400696220,1767780663988,-500.0,0.0003863,14]
[400696221,1767780663998,-509.73,0.0003863,14]
[400696222,1767780664010,-1820.72,0.0003863,14]
[400696223,1767780664019,-500.0,0.0003863,14]
[400696224,1767780664028,-500.0,0.0003863,14]
[400696225,1767780664037,-500.0,0.0003863,14]
[400696226,1767780664047,-500.0,0.0003863,14]
[400696227,1767780664056,-500.0,0.0003863,14]
[400696228,1767780664065,-500.0,0.0003863,14]
[400696229,1767780664075,-500.0,0.0003863,14]
[400696230,1767780664084,-500.0,0.0003863,14]
[400696231,1767780664094,-500.0,0.0003863,14]
[400696232,1767780664103,-419.69,0.0003863,14]
[400696233,1767780664112,-894.68,0.0003863,14]
[400696234,1767780664121,-500.0,0.0003863,14]
[400696235,1767780664131,-500.0,0.0003863,14]
[400696236,1767780664140,-500.0,0.0003863,14]
[400696237,1767780664150,-500.0,0.0003863,14]
[400696238,1767780664159,-500.0,0.0003863,14]
[400696239,1767780664168,-500.0,0.0003863,2]
[400696240,1767780664178,-500.0,0.0003863,14]
[400696241,1767780664187,-844.4,0.0003863,14]
[400696242,1767780664197,-500.0,0.0003863,14]
[400696243,1767780664207,-162.80011449,0.0003863,14]
[400696244,1767780664216,-500.0,0.0003863,14]
[400696245,1767780664226,-178.03957129,0.0003863,14]
[400696246,1767780664236,-500.0,0.0003863,14]
[400696247,1767780664248,-500.0,0.0003863,14]
[400696248,1767780664257,-583.2696986,0.0003863,14]
[400696249,1767780664267,-500.0,0.0003863,14]
[400696250,1767780664277,-521.43433039,0.0003863,14]
[400696251,1767780664286,-1663.76,0.0003863,14]
[400696252,1767780664295,-866.83,0.0003863,14]
[400696253,1767780664306,-500.0,0.0003863,14]
[400696254,1767780664316,-500.0,0.0003863,14]
[400696255,1767780664325,-500.0,0.0003863,14]
[400696256,1767780664334,-500.0,0.0003863,14]
[400696257,1767780664343,-500.0,0.0003863,14]
[400696258,1767780664352,-500.0,0.0003863,14]
[400696259,1767780664362,-523.40513077,0.0003863,14]
[400696260,1767780664371,-500.0,0.0003863,14]
[400696261,1767780664381,-500.0,0.0003863,14]
[400696262,1767780664391,-500.0,0.0003863,14]
[400696263,1767780664400,-500.0,0.0003863,14]
[400696264,1767780664409,-592.94,0.0003863,14]
[400696265,1767780664419,-500.0,0.0003863,14]
[400696266,1767780664428,-702.9,0.0003863,14]
[400696267,1767780664441,-1029.61,0.0003863,14]
[400696268,1767780664451,-500.0,0.0003863,14]
[400696269,1767780664460,-500.0,0.0003863,14]
[400696270,1767780664470,-522.96,0.0003863,2]
[400696271,1767780664482,-500.0,0.0003863,14]
[400696272,1767780664492,-1576.75,0.0003863,14]
[400696273,1767780664502,-178.62805774,0.0003863,14]
[400696274,1767780664512,-500.0,0.0003863,14]
[400696275,1767780664523,-500.0,0.0003863,14]
[400696276,1767780664533,-500.0,0.0003863,14]
[400696277,1767780664542,-500.0,0.0003863,14]
[400696278,1767780664553,-524.51544014,0.0003863,14]
[400696279,1767780664563,-500.0,0.0003863,14]
[400696280,1767780664573,-500.0,0.0003863,14]
[400696281,1767780664583,-555.89,0.0003863,14]
[400696282,1767780664592,-562.98887767,0.0003863,14]
[400696283,1767780664602,-528.97818891,0.0003863,14]
[400696284,1767780664613,-500.0,0.0003863,14]
[400696285,1767780664623,-500.0,0.0003863,14]
[400696286,1767780664632,-500.0,0.0003863,14]
[400696287,1767780664642,-500.0,0.0003863,14]
[400696288,1767780664651,-500.0,0.0003863,14]
[400696289,1767780664660,-506.62,0.0003863,14]
[400696290,1767780664671,-500.0,0.0003863,14]
[400696291,1767780664680,-500.0,0.0003863,14]
[400696292,1767780664690,-545.31,0.0003863,14]
[400696293,1767780664700,-500.0,0.0003863,14]
[400696294,1767780664710,-500.0,0.0003863,14]
[400696295,1767780664719,-500.0,0.0003863,14]
[400696296,1767780664729,-588.90395677,0.0003863,14]
[400696297,1767780664738,-500.0,0.0003863,7]
[400696298,1767780664748,-532.89867586,0.0003863,14]
[400696299,1767780664757,-500.0,0.0003863,14]
[400696300,1767780664767,-626.12,0.0003863,14]
[400696301,1767780664777,-500.0,0.0003863,14]
[400696302,1767780664787,-500.0,0.0003863,14]
[400696303,1767780664796,-500.0,0.0003863,14]
[400696304,1767780664806,-500.0,0.0003863,14]
[400696305,1767780664815,-512.29855555,0.0003863,14]
[400696306,1767780664825,-313.9850701,0.0003863,14]
[400696307,1767780664834,-500.0,0.0003863,14]
[400696308,1767780664844,-500.0,0.0003863,14]
[400696309,1767780664854,-500.0,0.0003863,14]
[400696310,1767780664863,-500.0,0.0003863,14]
[400696311,1767780664872,-500.0,0.0003863,14]
[400696312,1767780664882,-500.0,0.0003863,14]
[400696313,1767780664891,-502.24720019,0.0003863,14]
[400696314,1767780664901,-623.46,0.0003863,14]
[400696315,1767780664910,-500.0,0.0003863,14]
[400696316,1767780664919,-500.0,0.0003863,14]
[400696317,1767780664930,-500.0,0.0003863,14]
[400696318,1767780664940,-500.0,0.0003863,14]
[400696319,1767780664950,-500.0,0.0003863,14]
[400696320,1767780664960,-500.0,0.0003863,14]
[400696321,1767780664969,-500.0,0.0003863,14]
[400696322,1767780664979,-573.12502254,0.0003863,14]
[400696323,1767780664989,-527.66343084,0.0003863,14]
[400696324,1767780664999,-500.0,0.0003863,14]
[400696325,1767780665010,-500.0,0.0003863,14]
[400696326,1767780665020,-500.0,0.0003863,14]
[400696327,1767780665029,-500.0,0.0003863,14]
[400696328,1767780665039,-517.31969666,0.0003863,14]
[400696329,1767780665048,-500.0,0.0003863,14]
[400696330,1767780665057,-500.0,0.0003863,14]
[400696331,1767780665067,-500.0,0.0003863,14]
[400696332,1767780665077,-500.0,0.0003863,14]
[400696333,1767780665087,-500.0,0.0003863,14]
[400696334,1767780665096,-198.34443781,0.0003863,14]
[400696335,1767780665105,-500.0,0.0003863,14]
[400696336,1767780665115,-400.12165859,0.0003863,14]
[400696337,1767780665125,-500.0,0.0003863,14]
[400696338,1767780665134,-500.0,0.0003863,14]
[400696339,1767780665143,-500.0,0.0003863,14]
[400696340,1767780665153,-500.0,0.0003863,14]
[400696341,1767780665163,-500.0,0.0003863,14]
[400696342,1767780665172,-500.0,0.0003863,14]
[400696343,1767780665182,-500.0,0.0003863,14]
[400696344,1767780665191,-500.0,0.0003863,14]
[400696345,1767780665201,-500.0,0.0003863,14]
[400696346,1767780665211,-500.0,0.0003863,14]
[400696347,1767780665220,-500.0,0.0003863,14]
[400696348,1767780665229,-614.62229685,0.0003863,14]
[400696349,1767780665238,-500.0,0.0003863,14]
[400696350,1767780665247,-500.0,0.0003863,14]
[400696351,1767780665257,-500.0,0.0003863,14]
[400696352,1767780665266,-500.0,0.0003863,14]
[400696353,1767780665276,-500.0,0.0003863,14]
[400696354,1767780665285,-500.0,0.0003863,14]
[400696355,1767780665294,-500.0,0.0003863,14]
[400696356,1767780665303,-165.76239783,0.0003863,14]
[400696357,1767780665313,-500.0,0.0003863,14]
[400696358,1767780665323,-500.0,0.0003863,14]
[400696359,1767780665333,-570.99910146,0.0003863,14]
[400696360,1767780665342,-500.0,0.0003863,14]
[400696361,1767780665352,-546.78194293,0.0003863,14]
[400696362,1767780665362,-500.0,0.0003863,14]
[400696363,1767780665372,-500.0,0.0003863,14]
[400696364,1767780665382,-1318.9,0.0003863,14]
[400696365,1767780665392,-506.26,0.0003863,14]
[400696366,1767780665403,-500.0,0.0003863,14]
[400696367,1767780665412,-500.0,0.0003863,14]
[400696368,1767780665423,-500.0,0.0003863,14]
[400696369,1767780665433,-500.0,0.0003863,14]
[400696370,1767780665446,-500.0,0.0003863,14]
[400696371,1767780665456,-550.64885487,0.0003863,14]
[400696372,1767780665466,-500.0,0.0003863,14]
[400696373,1767780665476,-500.0,0.0003863,14]
[400696374,1767780665487,-500.0,0.0003863,14]
[400696375,1767780665498,-300.0,0.0003863,14]
[400696376,1767780665509,-500.0,0.0003863,14]
[400696377,1767780665519,-500.0,0.0003863,14]
[400696378,1767780665529,-500.0,0.0003863,14]
[400696379,1767780665539,-500.0,0.0003863,14]
[400696380,1767780665548,-500.0,0.0003863,14]
[400696381,1767780665559,-500.0,0.0003863,14]
[400696382,1767780665569,-500.0,0.0003863,14]
[400696383,1767780665579,-500.0,0.0003863,14]
[400696384,1767780665589,-500.0,0.0003863,14]
[400696385,1767780665600,-506.15151026,0.0003863,14]
[400696386,1767780665610,-500.0,0.0003863,14]
[400696387,1767780665621,-500.0,0.0003863,14]
[400696388,1767780665631,-548.43,0.0003863,14]
[400696389,1767780665641,-172.16410624,0.0003863,14]
[400696390,1767780665651,-500.0,0.0003863,14]
[400696391,1767780665661,-500.0,0.0003863,14]
[400696392,1767780665672,-500.0,0.0003863,14]
[400696393,1767780665682,-500.0,0.0003863,14]
[400696394,1767780665692,-500.0,0.0003863,14]
[400696395,1767780665702,-500.0,0.0003863,14]
[400696396,1767780665711,-500.0,0.0003863,14]
[400696397,1767780665721,-512.33191599,0.0003863,14]
[400696398,1767780665731,-500.0,0.0003863,14]
[400696399,1767780665741,-500.0,0.0003863,14]
[400696400,1767780665751,-500.0,0.0003863,14]
[400696401,1767780665762,-500.0,0.0003863,14]
[400696402,1767780665772,-826.16,0.0003863,14]
[400696403,1767780665782,-500.0,0.0003863,14]
[400696404,1767780665792,-500.0,0.0003863,10]
[400696405,1767780665803,-500.0,0.0003863,14]
[400696406,1767780665813,-500.0,0.0003863,14]
[400696407,1767780665823,-500.0,0.0003863,14]
[400696408,1767780665833,-517.13666413,0.0003863,14]
[400696409,1767780665843,-500.0,0.0003863,14]
[400696410,1767780665853,-505.82920448,0.0003863,14]
[400696411,1767780665862,-500.0,0.0003863,14]
[400696412,1767780665871,-500.0,0.0003863,14]
[400696413,1767780665880,-500.0,0.0003863,14]
[400696414,1767780665890,-521.02,0.0003863,14]
[400696415,1767780665900,-500.0,0.0003863,14]
[400696416,1767780665910,-500.0,0.0003863,14]
[400696417,1767780665920,-500.0,0.0003863,14]
[400696418,1767780665929,-500.0,0.0003863,14]
[400696419,1767780665940,-500.0,0.0003863,14]
[400696420,1767780665950,-500.0,0.0003863,14]
[400696421,1767780665960,-1000.0,0.0003863,2]
[400696422,1767780666215,-500.0,0.0003863,14]
[400696423,1767780666226,-300.0,0.0003863,2]
[400696424,1767780666236,-558.46843675,0.0003863,14]
[400696425,1767780666246,-500.0,0.0003863,14]
[400696426,1767780666256,-500.0,0.0003863,14]
[400696427,1767780666266,-500.0,0.0003863,14]
[400696428,1767780666276,-500.0,0.0003863,14]
[400696429,1767780666285,-576.39,0.0003863,14]
[400696430,1767780666295,-500.0,0.0003863,14]
[400696431,1767780666304,-500.0,0.0003863,14]
[400696432,1767780666314,-632.73,0.0003863,14]
[400696433,1767780666323,-500.0,0.0003863,14]
[400696434,1767780666333,-500.0,0.0003863,14]
[400696435,1767780666342,-500.0,0.0003863,14]
[400696436,1767780666351,-504.86,0.0003863,14]
[400696437,1767780666361,-500.0,0.0003863,14]
[400696438,1767780666370,-500.0,0.0003863,14]
[400696439,1767780666380,-690.2,0.0003863,14]
[400696440,1767780666389,-514.83474166,0.0003863,14]
[400696441,1767780666399,-500.0,0.0003863,14]
[400696442,1767780666409,-500.0,0.0003863,14]
[400696443,1767780666420,-500.0,0.0003863,14]
[400696444,1767780666430,-500.0,0.0003863,14]
[400696445,1767780666442,-500.0,0.0003863,14]
[400696446,1767780666454,-500.0,0.0003863,14]
[400696447,1767780666464,-500.0,0.0003863,14]
[400696448,1767780666474,-500.0,0.0003863,14]
[400696449,1767780666486,-500.0,0.0003863,14]
[400696450,1767780666495,-500.0,0.0003863,14]
[400696451,1767780666505,-500.0,0.0003863,14]
[400696452,1767780666515,-500.0,0.0003863,14]
[400696453,1767780666526,-500.0,0.0003863,14]
[400696454,1767780666535,-500.0,0.0003863,14]
[400696455,1767780666546,-500.0,0.0003863,14]
[400696456,1767780666555,-530.81,0.0003863,14]
[400696457,1767780666565,-500.0,0.0003863,14]
[400696458,1767780666574,-500.0,0.0003863,14]
[400696459,1767780666584,-565.39852279,0.0003863,14]
[400696460,1767780666594,-500.0,0.0003863,2]
[400696461,1767780666603,-500.0,0.0003863,14]
[400696462,1767780666615,-500.0,0.0003863,14]
[400696463,1767780666625,-500.0,0.0003863,14]
[400696464,1767780666634,-518.80613998,0.0003863,14]
[400696465,1767780666644,-500.0,0.0003863,14]
[400696466,1767780666654,-608.93,0.0003863,14]
[400696467,1767780666664,-500.0,0.0003863,2]
[400696468,1767780666673,-503.51,0.0003863,14]
[400696469,1767780666684,-500.0,0.0003863,14]
[400696470,1767780666694,-519.43868167,0.0003863,14]
[400696471,1767780666704,-500.0,0.0003863,14]
[400696472,1767780666713,-500.0,0.0003863,14]
[400696473,1767780666723,-734.92,0.0003863,14]
[400696474,1767780666733,-500.0,0.0003863,14]
[400696475,1767780666742,-500.0,0.0003863,14]
[400696476,1767780666751,-500.0,0.0003863,14]
[400696477,1767780666761,-500.0,0.0003863,14]
[400696478,1767780666771,-500.0,0.0003863,2]
[400696479,1767780666780,-500.0,0.0003863,14]
[400696480,1767780666789,-500.0,0.0003863,14]
[400696481,1767780666800,-500.0,0.0003863,14]
[400696482,1767780666810,-630.23,0.0003863,14]
[400696483,1767780666820,-934.12,0.0003863,14]
[400696484,1767780666829,-563.23,0.0003863,2]
[400696485,1767780666839,-669.66,0.0003863,14]
[400696486,1767780666849,-500.0,0.0003863,14]
[400696487,1767780666858,-566.8371619,0.0003863,14]
[400696488,1767780666867,-1021.79,0.0003863,14]
[400696489,1767780666877,-500.0,0.0003863,14]
[400696490,1767780666886,-850.92,0.0003863,14]
[400696491,1767780666896,-727.22,0.0003863,14]
[400696492,1767780666905,-500.0,0.0003863,14]
[400696493,1767780666915,-500.0,0.0003863,14]
[400696494,1767780666925,-523.02223488,0.0003863,14]
[400696495,1767780666935,-500.0,0.0003863,14]
[400696496,1767780666945,-500.0,0.0003863,14]
[400696497,1767780666954,-881.83,0.0003863,14]
[400696498,1767780666964,-500.0,0.0003863,2]
[400696499,1767780666974,-500.0,0.0003863,14]